Cogmind - Beta 17.1 @@@ ROGUE MODE // 2026.09.13 @ 19:10:26 Player: stixxx Result: Destroyed by 5M-W28(R) with Subdweller Beam Cannon Performance ------------- Evolutions (0) 0 Regions Visited (2) 400 Robots Destroyed (7) 35 Value Destroyed (212) 212 Prototype IDs (4) 80 Alien Tech Used (0) 0 Bonus (0) 0 TOTAL SCORE: 727 Bonus ------- None Cogmind --------- Core Integrity 0/250 Matter 295/300 Energy 99/100 System Corruption 0% Temperature Cool (9) Movement Core (100) Ox1 Location -10/Subcaves Parts ------- > --- POWER (1) -------- (None) > --- PROPULSION (2) --- (None) > --- UTILITY (2) ------ Small Storage Unit > --- WEAPON (2) ------- (None) > --- INVENTORY (8) ---- Light Ion Engine Aluminum Leg Aluminum Leg Flight Unit High-capacity Storage Unit Assault Rifle Assault Rifle Grenade Launcher Peak State ------------ > --- POWER ------------ Light Ion Engine > --- PROPULSION ------- Aluminum Leg Aluminum Leg > --- UTILITY ---------- Small Storage Unit > --- WEAPON ----------- Assault Rifle Assault Rifle > --- INVENTORY -------- (None) [Rating: 6] Favorites ----------- Power Light Ion Engine Engine Light Ion Engine Propulsion Aluminum Leg Leg Aluminum Leg Utility Small Storage Unit Storage Small Storage Unit Weapon Beam Cannon Energy Cannon Beam Cannon Ballistic Gun Assault Rifle Build | -11 -10 -10 ------- Run | Yrd Mat Sub Slots Evolved . | . . . Power . | . . . Propulsion . | . . . Utility . | . . . Weapon . | . . . Parts Attached 9 | 6 3 . Power 1 | 1 . . Engine 1 | 1 . . Core . | . . . Reactor . | . . . Propulsion 2 | 2 . . Treads . | . . . Leg 2 | 2 . . Wheel . | . . . Hover . | . . . Flight . | . . . Utility 1 | 1 . . Device . | . . . Storage 1 | 1 . . Processor . | . . . Hackware . | . . . Protection . | . . . Artifact . | . . . Weapon 5 | 2 3 . Energy Gun . | . . . Energy Cannon 2 | . 2 . Ballistic Gun 3 | 2 1 . Ballistic Cannon . | . . . Launcher . | . . . Special Weapon . | . . . Impact Weapon . | . . . Slashing Weapon . | . . . Piercing Weapon . | . . . Special Melee Weapon . | . . . Unidentified Prototypes . | . . . Parts Lost 6 | . 1 5 Power 1 | . . 1 Propulsion 2 | . . 2 Utility . | . . . Weapon 3 | . 1 2 Highest Loss Streak 5 | . 1 5 To Critical Strikes . | . . . Average Backups 5 | 1 4 8 Power . | . . 1 Propulsion 1 | . . 3 Utility . | . . 1 Weapon 3 | . 3 3 Tool/Special . | . . . Unused Backups 5 | . . 5 Power 1 | . . 1 Propulsion 3 | . . 3 Utility . | . . . Weapon 1 | . . 1 Tool/Special . | . . . Average Slot Usage (%) 76 | . 84 54 Engine 12 | . 14 7 Leg 24 | . 28 16 Storage 14 | . 14 14 Energy Cannon 18 | . 23 7 Ballistic Gun 5 | . 4 7 Peak Build Rating 6 | 6 6 6 Average Rating 5 | 4 5 3 On Entrance 4 | . 6 6 Avg Prop Armor Cover (%) . | . . . Naked Turns . | . . . Heaviest Build 14 | 12 14 13 Greatest Support 20 | 20 20 20 Greatest Overweight (x) 1 | . . 1 Average Overweight (x) . | . . . Largest Inventory Capacity 8 | 8 8 8 Average Capacity 7 | 7 8 8 Most Carried 8 | 5 8 8 Average Carried 5 | 1 4 8 Final Capacity 8 | 8 8 8 Final Carried 8 | 1 8 8 Class Distribution -------------------- 100% | Mutant Dominant Class ---------------- Mutant | -10/Materials Mutant | -10/Subcaves Resources | -11 -10 -10 ----------- Run | Yrd Mat Sub Matter Collected 250 | 194 56 . Remotely . | . . . Salvage Created 215 | . 215 . Parts 20 | . 20 . Haulers Intercepted . | . . . Recyclers Shooed . | . . . Parts Field Recycled . | . . . Retrieved Matter . | . . . Parts Self-Destructed . | . . . Prevented . | . . . Parts Restored . | . . . Kills | -11 -10 -10 ------- Run | Yrd Mat Sub Combat Hostiles Destroyed 7 | . 7 . Cannons 7 | . 7 . Classes Destroyed 2 | . 2 . Swarmer 3 | . 3 . Grunt 4 | . 4 . Best Kill Streak 3 | . 3 . Combat Bots Only 3 | . 3 . Max Kills in Single Turn 1 | . 1 . Gunslinging . | . . . Exploded . | . . . Melee . | . . . Uniques/NPCs Destroyed . | . . . Combat | -11 -10 -10 -------- Run | Yrd Mat Sub Hostile Shots Fired 81 | . 40 41 Missed 26 | . 10 16 Hits 55 | . 30 25 Projectile 55 | . 30 25 Critical Strikes 3 | . 1 2 Damage Taken 917 | . 325 592 Core 270 | . 57 213 Absorbed by Shields . | . . . Core Remaining (%) 100 | 100 . . Volleys Fired 21 | . 18 3 Largest 2 | . 2 2 Hottest 120 | . 120 80 Shots Fired 40 | . 34 6 Gun 3 | . . 3 Cannon 37 | . 34 3 Launcher . | . . . Special . | . . . Kinetic 3 | . . 3 Thermal 37 | . 34 3 Explosive . | . . . Electromagnetic . | . . . Robot Hit Streak 3 | . 3 2 Robot Miss Streak 4 | . 4 2 Penetration Max . | . . . Secondary Targets . | . . . Shots Hit Robots 17 | . 14 3 Core Hits 11 | . 9 2 Critical Kills . | . . . Critical Parts Destroyed . | . . . Critical Strikes . | . . . Melee Attacks . | . . . Impact . | . . . Slashing . | . . . Piercing . | . . . Sneak Attacks . | . . . Combat Hostiles . | . . . Follow-up Attacks . | . . . Damage Inflicted 293 | . 232 61 Guns 23 | . . 23 Cannons 264 | . 229 35 Explosions . | . . . Melee . | . . . Ramming 6 | . 3 3 Kinetic 23 | . . 23 Thermal 264 | . 229 35 Explosive . | . . . Electromagnetic . | . . . Impact . | . . . Slashing . | . . . Piercing . | . . . Highest Corruption . | . . . Average Corruption . | . . . Corruption Purged . | . . . Corruption Blocked . | . . . Overload Shots . | . . . Overflow Damage . | . . . Projectiles . | . . . Explosions . | . . . Melee . | . . . Knockbacks . | . . . Impact . | . . . Kinetic . | . . . Secondary . | . . . Self-Inflicted Damage . | . . . Shots . | . . . Rammed 2 | . . 2 Targets Rammed 4 | . 1 3 Kicked 2 | . 1 1 Crushed . | . . . Highest Temperature 391 | . 391 285 Average Temperature 165 | . 163 182 Received Heat Transfer 533 | . 135 398 Effects 5 | . 2 3 Shutdowns 1 | . 1 . Energy Bleed 2 | . 1 1 Interference 2 | . . 2 Siege Activations . | . . . Martial Activations . | . . . Shielding Activations . | . . . Robots Disrupted . | . . . Combat Hostiles . | . . . Robots Corrupted . | . . . Combat Hostiles . | . . . Parts Fried . | . . . Impact Corruptions . | . . . Robots Melted . | . . . Combat Hostiles . | . . . Parts Melted 1 | . 1 . Heat Transferred 555 | . 481 74 Parts Sabotaged . | . . . Parts Stolen . | . . . Parts Stripped . | . . . Power Chain Reactions . | . . . Alert | -11 -10 -10 ------- Run | Yrd Mat Sub Maximum Alert Level . | . . . Low Security (%) 100 | 100 100 . Level 1 . | . . . Level 2 . | . . . Level 3 . | . . . Level 4 . | . . . Level 5 . | . . . High Security . | . . . Max Security . | . . . Peak Influence 154 | . 154 . Initial . | . . . Average 36 | . 40 . Influence Increases 242 | . 242 . Destroy 0b10 Robot/C 140 | . 140 . Destroy Leader 30 | . 30 . Successful Hack 12 | . 12 . Disable Machine 30 | . 30 . Lose Combat Pursuer 30 | . 30 . Influence Decreases 242 | . 96 146 Entered New Map 71 | . . 71 Time Decay 126 | . 86 40 Lost Part 45 | . 10 35 Squads Dispatched . | . . . Investigation . | . . . Extermination . | . . . Reinforcement . | . . . Assault . | . . . Garrison . | . . . Intercept . | . . . Searches Triggered . | . . . Construction Impeded . | . . . Haulers Reinforced . | . . . Active Scanning Responses . | . . . Cargo Convoy Interrupts . | . . . Stealth | -11 -10 -10 --------- Run | Yrd Mat Sub Distress Signals . | . . . Communications Jammed . | . . . Distress Signals . | . . . Times Spotted 12 | . 10 2 Peak Tracking Total 5 | . 5 2 Tactical Retreats 2 | . 2 . Traps | -11 -10 -10 ------- Run | Yrd Mat Sub Traps Triggered . | . . . Indirectly . | . . . Trap Hack Attempts . | . . . Triggered . | . . . Disarmed . | . . . Reprogrammed . | . . . Reused . | . . . Traps Extracted . | . . . Installed . | . . . Triggered . | . . . Machines | -11 -10 -10 ---------- Run | Yrd Mat Sub Machines Disabled 2 | . 2 . Max in Single Turn 1 | . 1 . Machines Repaired . | . . . Machines Dismantled . | . . . Machines Sabotaged . | . . . Overloaded Fab Kills . | . . . Hacking | -11 -10 -10 --------- Run | Yrd Mat Sub Machines Accessed 3 | . 3 . Terminals 3 | . 3 . Fabricators . | . . . Repair Stations . | . . . Recycling Units . | . . . Scanalyzers . | . . . Garrison Access . | . . . Total Hacks 9 | . 9 . Successful 7 | . 7 . Failed 2 | . 2 . Catastrophic . | . . . Database Lockouts . | . . . Manual . | . . . Terminals 9 | . 9 . Fabricators . | . . . Repair Stations . | . . . Recycling Units . | . . . Scanalyzers . | . . . Garrison Access . | . . . Terminal Hacks 7 | . 7 . Record 4 | . 4 . Prototype ID Bank 2 | . 2 . Zone Layout 1 | . 1 . Fabricator Hacks . | . . . Repair Station Hacks . | . . . Recycling Unit Hacks . | . . . Scanalyzer . | . . . Garrison Access Hacks . | . . . Unauthorized Hacks . | . . . Terminals . | . . . Fabricators . | . . . Repair Stations . | . . . Recycling Units . | . . . Scanalyzers . | . . . Garrison Access . | . . . Data Cores Recovered . | . . . Used . | . . . Hacking Detections 3 | . 3 . Full Trace Events 2 | . 2 . Feedback Events . | . . . Feedback Blocked . | . . . Robot Schematics Acquired . | . . . Robots Built . | . . . Authchips . | . . . Time . | . . . Total Robot Build Rating . | . . . Part Schematics Acquired . | . . . Parts Built . | . . . Authchips . | . . . Time . | . . . Total Part Build Rating . | . . . Part Studies Acquired . | . . . Parts Repaired . | . . . Time . | . . . Parts Recycled . | . . . Recycled Matter . | . . . Retrieved Matter . | . . . Retrieved Components . | . . . Parts Scanalyzed . | . . . Part Schematics Acquired . | . . . Parts Damaged . | . . . Bothacking | -11 -10 -10 ------------ Run | Yrd Mat Sub Used RIF Installer . | . . . Robots Hacked . | . . . Non-combat . | . . . Combat . | . . . Robot Hacks Applied . | . . . Relay Couplers Released . | . . . Fabnet Peak Effective % . | . . . Robots Rewired . | . . . Allies Hacked . | . . . Hacks Repelled . | . . . Allies | -11 -10 -10 -------- Run | Yrd Mat Sub Total Allies . | . . . Largest Group . | . . . Highest-Rated Group . | . . . Highest-Rated Ally . | . . . Total Orders . | . . . Ally Attacks . | . . . Total Damage . | . . . Kills . | . . . Allies Corrupted . | . . . Allies Melted 1 | . . 1 Intel | -11 -10 -10 ------- Run | Yrd Mat Sub Active Infowar (turns) . | . . . Robot Analysis Total . | . . . Derelict Logs Recovered . | . . . Drone Launches . | . . . Drone Recoveries . | . . . Exploration | -11 -10 -10 ------------- Run | Yrd Mat Sub Turns Passed 678 | 54 448 176 Spaces Moved 494 | 42 314 138 Core 73 | 13 . 60 Treads . | . . . Legs 421 | 29 314 78 Wheels . | . . . Hover . | . . . Flight . | . . . Fastest Speed 50 | 50 120 100 Average Speed 116 | 98 120 113 Slowest Speed 190 | 120 120 190 Overloaded Moves . | . . . Propulsion Burnouts . | . . . Robots Hopped . | . . . Potential Cave-ins . | . . . Cave-ins Triggered . | . . . Exploration Rate (%) 16 | 3 38 8 Regions Visited 2 Branch Regions 1 Pre-discovered Areas . | . . . Known Exits Taken . | . . . Unknown Exits Taken 2 | 1 1 . Scrap Searched . | . . . Spaces Dug . | . . . Terrain Destroyed . | . . . Melee . | . . . Projectile . | . . . AOE . | . . . Terrain Rammed . | . . . Walls Destroyed . | . . . Machines Disabled . | . . . Actions | -11 -10 -10 --------- Run | Yrd Mat Sub Total 557 | 54 352 151 Wait 14 | . 7 7 Move 492 | 41 313 138 Hop . | . . . Pick Up 15 | 7 8 . Fast Attach . | . . . Attach 9 | 6 3 . Detach 2 | . 2 . Swap . | . . . Drop . | . . . Fire 21 | . 18 3 Melee . | . . . Ram 2 | . . 2 Kick 2 | . 1 1 Crush . | . . . Escape Stasis . | . . . Rewire . | . . . Trap . | . . . Miscellaneous . | . . . Route ------- -11/Scrapyard -10/Materials (discovered 4 exits: [*Mat] / [*Min x2] / [*Sub]) -10/Subcaves History --------- Turn | Location | Event 24 | -11/Scrapyard | Discovered new exit (range 14) 55 | -11/Scrapyard | Entered Materials 56 | -10/Materials | Met a group of wandering Federalists 190 | -10/Materials | Discovered new exit (range 15) 190 | -10/Materials | Discovered new exit (range 15) 214 | -10/Materials | Discovered new exit (range 12) 277 | -10/Materials | Discovered new exit (range 7) 304 | -10/Materials | Build established: Mutant 503 | -10/Materials | Entered Subcaves 504 | -10/Subcaves | Continued accompanying wandering Federalists (6) 504 | -10/Subcaves | Approached by a straggling Scientist 573 | -10/Subcaves | Lost 6 allies 596 | -10/Subcaves | Core integrity fell below 50% 622 | -10/Subcaves | Core integrity fell below 20% 649 | -10/Subcaves | Lost 5 parts (1p2n2w) 679 | -10/Subcaves | Destroyed by 5M-W28(R) with Subdweller Beam Cannon Last Messages --------------- where it is?" FS-DK1(g): "We could head over to Recycling and return via the Scraplab, but it would be faster if we could just find that shortcut." P1-OB1(c): "I think it's somewhere east of here" Critical hit (Meltdown: +290). Overheating: System interference. Beam Cannon temporarily disabled. Assault Rifle temporarily disabled. Overheating: Energy bleed (-17). Aluminum Leg destroyed. Assault Rifle destroyed. Lgt. Ion Engine destroyed. Beam Cannon destroyed. Kicked MM-917(R). Aluminum Leg destroyed. Slammed into MM-917(R). Slammed into 5M-W28(R). UT-S1C(u) builds Twisted Machinery. P1-OB1(c): "I think it's somewhere east of here" Map ----- +----------------------------------------------------+ | ?????????????????????????????????????????????????? | | ?????????????????????????????????????????????????? | | ?????????????????????????????????????????????????? | | ?????????????????????????????????????????????????? | | ?????????????????????????????????????????????????? | | ?????????????????????????????????????????????????? | | ?????????????????????????????????????????????????? | | ?????????????????????????????????????????????????? | | ?????????????????????????????????????????????????? | | ?????????????????????????????????????????????????? | | ?????????????????????????????????????????????????? | | ?????????????????????????????????????????????????? | | ?????????????????????????????????????????????????? | | ?????????????????????????????????????????????????? | | ?????????????????????????????????????????????????? | | ?????????????????????????????????????????????????? | | ?????????????????????????????????????????????????? | | ?????????????????????????????????????????????????? | | ???????????????##???????#????????????????????????? | | ???? ??????????? #####?$?????????????????????????? | | ???? ?????????? # ??????????????????????????? | | ???? ????????## ???????????????????????????? | | ???? ???##???# ##???????????????????????????? | | ???? ???## ?###< "###?#####???????????????????? | | ???? ???# ## < ### #???????????????????? | | ???? ????# c @ #???????????????????? | | #### ?????# ### ##???????????????????? | | ? #?????## R #####?###????????????????????? | | ? #??##### R#####????????????????????????????? | | ?# ???# ## #????????????????????????????????? | | ?# #??## ##????????????????????????????????? | | ?# #?## ###???????????????????????????????? | | ## ### #??????????????????????????????? | | ## #?????????????????????????????? | | ### ##?????????????????????????????? | | #### ## ##??????????????????????????????? | | ???## #???????????????????????????????? | | ????### #???????????????????????????????? | | ??????## ##???????????????????????????????? | | ???????# ##????????????????????????????????? | | ???????### #?????????????????????????????????? | | ??????????## ##?????????????????????????????????? | | ????????????###??????????????????????????????????? | | ?????????????????????????????????????????????????? | | ?????????????????????????????????????????????????? | | ?????????????????????????????????????????????????? | | ?????????????????????????????????????????????????? | | ?????????????????????????????????????????????????? | | ?????????????????????????????????????????????????? | | ?????????????????????????????????????????????????? | +----------------------------------------------------+ Best States ------------- Heat Dissipation 25 Energy Generation 10 Energy Capacity 125 Matter Stores 295 Matter Capacity 300 Sight Range 16 Terrain Scan Density 10 Evasion (%) 55 Item Schematics ----------------- None Robot Schematics ------------------ None Fabricated ------------ Nothing Repaired ---------- Nothing Studied --------- None Alien Tech Used ----------------- None Achievements -------------- Strength In Numbers Challenges ------------ None Game ------ Seed NullEmergencySaw Manual? 0 Play Time 00:12:31 Cumulative 2.5 hours Start 2026.09.13 @ 18:59:04 End 2026.09.13 @ 19:10:26 Sessions 1 Manual Loads 0 Difficulty Rogue Special Mode None Game No. 7 Rogue 7 Adventurer 0 Explorer 0 Win Type - Total 0 Types 0/0/0/0/0/0/0/0/0/0 Lore% 1 Gallery% 3 Achievement% 4 Wizard Run 0 Options --------- Layout 1 ASCII 0 Keyboard 1 Movement Numpad Keybinds 0 Fullscreen 1 Font 24/Smallcaps Map View 50x35 Zoom Use 0% Tactical HUD 0 Map Filters NONE Filters NONE Steam 1 RUN: b89c841e-149e-45fd-86bf-3133daf58e0d